Cogmind - Beta 17.1 @@@ ROGUE MODE // 2026.09.06 @ 04:44:31 Player: 4R-ZE3 Result: Destroyed by P-70 Sage with Tesla Rifle Performance ------------- Evolutions (6) 3000 Regions Visited (12) 2400 Robots Destroyed (97) 485 Value Destroyed (4263) 4263 Prototype IDs (29) 580 Alien Tech Used (2) 400 Bonus (1342) 1342 TOTAL SCORE: 12470 Bonus ------- High Alert Combat Kills 242 Registered with UFD 300 Met Optimus in HQ 500 Met Zhirov 300 Cogmind --------- Core Integrity 0/1150 Matter 270/300 Energy 83/100 System Corruption 28% Temperature Cool (5) Movement Core (850) Ox16 Location -4/Factory Parts ------- > --- POWER (2) -------- (None) > --- PROPULSION (6) --- (None) > --- UTILITY (9) ------ High-capacity Storage Unit > --- WEAPON (2) ------- Heavy Phase Cannon > --- INVENTORY (20) --- Light Antimatter Reactor Antigrav System Antigrav System Antigrav System Antigrav System Gyrokinetic Inverter Advanced Cooling System Improved Trap Scanner Advanced Sensor Array Improved Focal Shield Advanced Plasma Cannon Improved Plasma Cutter Peak State ------------ > --- POWER ------------ Light Nuclear Core Light Antimatter Reactor > --- PROPULSION ------- Carbon-fiber Leg Flexi-carbon Leg Myomer Leg Advanced Myomer Leg Advanced Myomer Leg Advanced Myomer Leg > --- UTILITY ---------- Advanced Power Amplifier Advanced Heat Sink High-capacity Storage Unit Advanced Signal Interpreter Improved Melee Analysis Suite Core Analyzer Improved Focal Shield Improved Force Field Advanced System Shield > --- WEAPON ----------- Companion Sword > --- INVENTORY -------- Light Nuclear Core Carbon-fiber Leg Carbon-fiber Leg Carbon-fiber Leg Carbon-fiber Leg Carbon-fiber Leg VSS Leg Armored Leg Antigrav System Gyrokinetic Inverter Advanced Cooling System Improved Trap Scanner Improved Sensor Array Advanced Sensor Array Insulated Plating Improved Hardlight Generator Advanced Plasma Cannon Heavy Phase Cannon Proton Missile Launcher Improved Plasma Cutter [Rating: 108] Favorites ----------- Power Micro Fission Core Engine Subdweller Power Source Power Core Micro Fission Core Reactor Light Antimatter Reactor Propulsion Armored Leg Treads Light Treads Leg Armored Leg Utility Improved Sensor Array Device Improved Sensor Array Storage High-capacity Storage Unit Processor Core Analyzer Hackware Advanced Hacking Suite Protection Makeshift Light Armor Plating Weapon Companion Sword Energy Gun Medium Laser Energy Cannon Subdweller Beam Cannon Ballistic Gun Subdweller Machine Gun Launcher Proton Missile Launcher Special Weapon Multitool Slashing Weapon Companion Sword Piercing Weapon Heavy Pick Build | -11 -10 -10 -7 -7 -5 -5 -5 -5 -5 -5 -4 -4 ------- Run | Yrd Mat Sub Rec Scr Fac Was Fac Upp Upp Zhi Pro Fac Slots Evolved 12 | . . . . . 10 . . . . . . 2 Power 1 | . . . . . 1 . . . . . . . Propulsion 4 | . . . . . 3 . . . . . . 1 Utility 7 | . . . . . 6 . . . . . . 1 Weapon . | . . . . . . . . . . . . . Parts Attached 133 | 6 3 10 3 8 22 . 26 13 5 7 . 30 Power 20 | 1 . 1 . 1 3 . 2 3 2 . . 7 Engine 6 | 1 . 1 . . 2 . . . 2 . . . Core 8 | . . . . 1 1 . 2 2 . . . 2 Reactor 6 | . . . . . . . . 1 . . . 5 Propulsion 43 | 2 . 2 1 1 7 . 9 3 1 3 . 14 Treads 5 | 2 . 2 1 . . . . . . . . . Leg 38 | . . . . 1 7 . 9 3 1 3 . 14 Wheel . | . . . . . . . . . . . . . Hover . | . . . . . . . . . . . . . Flight . | . . . . . . . . . . . . . Utility 54 | 1 3 1 . 3 12 . 13 6 2 4 . 9 Device 24 | . 1 . . . 6 . 8 1 2 . . 6 Storage 5 | 1 1 . . 1 . . 1 . . 1 . . Processor 10 | . . . . 2 3 . 1 2 . . . 2 Hackware 2 | . . . . . . . . . . 1 . 1 Protection 13 | . 1 1 . . 3 . 3 3 . 2 . . Artifact . | . . . . . . . . . . . . . Weapon 16 | 2 . 6 2 3 . . 2 1 . . . . Energy Gun 2 | 1 . 1 . . . . . . . . . . Energy Cannon 2 | . . 1 . . . . 1 . . . . . Ballistic Gun 6 | 1 . 4 1 . . . . . . . . . Ballistic Cannon . | . . . . . . . . . . . . . Launcher 1 | . . . . . . . . 1 . . . . Special Weapon 1 | . . . 1 . . . . . . . . . Impact Weapon . | . . . . . . . . . . . . . Slashing Weapon 3 | . . . . 3 . . . . . . . . Piercing Weapon 1 | . . . . . . . 1 . . . . . Special Melee Weapon . | . . . . . . . . . . . . . Unidentified Prototypes 8 | . . . . 1 . . 2 . . 4 1 . Parts Lost 73 | . . 2 . . 12 . 3 3 4 . 8 41 Power 12 | . . . . . 2 . . . 1 . 3 6 Propulsion 28 | . . . . . 2 . 1 1 . . 2 22 Utility 28 | . . . . . 7 . 2 2 3 . 3 11 Weapon 5 | . . 2 . . 1 . . . . . . 2 Highest Loss Streak 20 | . . 1 . . 7 . 2 1 4 . 8 20 To Critical Strikes 3 | . . . . . . . . . . . . 3 Average Backups 12 | 2 5 9 9 10 5 10 14 19 18 20 17 17 Power . | . 1 1 . . . . . 1 2 1 . . Propulsion 4 | 1 2 3 3 2 1 4 5 5 6 7 8 7 Utility 4 | . 1 2 2 4 2 5 6 8 6 6 4 5 Weapon 2 | . . 1 3 1 . 1 2 3 3 3 2 3 Tool/Special . | . . . . . . . . . . . . . Unused Backups 20 | . 1 5 . 2 . . 3 1 . . . 8 Power 3 | . . 2 . . . . . 1 . . . . Propulsion 9 | . 1 1 . 1 . . 1 . . . . 5 Utility 3 | . . 1 . 1 . . . . . . . 1 Weapon 4 | . . 1 . . . . 2 . . . . 1 Tool/Special 1 | . . . . . . . . . . . . 1 Average Slot Usage (%) 89 | . 98 99 100 88 81 80 85 96 74 83 80 76 Engine 5 | . 14 14 14 7 4 5 . . 1 5 3 . Core 3 | . . . . 5 4 5 6 8 5 5 3 1 Treads 11 | . 28 28 28 22 . . . . . . . . Leg 14 | . . . . 2 18 17 22 28 29 29 24 29 Device 8 | . . 7 6 . 10 21 19 15 7 5 8 15 Storage 9 | . 14 14 14 13 5 5 5 5 5 5 5 5 Processor 8 | . . . . 4 19 15 13 14 11 11 11 12 Protection 7 | . 12 6 7 13 9 5 6 6 5 8 7 . Energy Gun 1 | . 14 8 . . . . . . . . . . Energy Cannon 2 | . . . 14 3 . . 2 . . . . . Ballistic Gun 4 | . 14 19 8 3 . . . . . . . . Slashing Weapon 5 | . . . . 11 6 5 6 5 5 5 5 5 Peak Build Rating 108 | 6 7 16 16 48 95 95 94 88 81 96 101 108 Average Rating 51 | 5 6 11 14 23 81 90 86 78 69 85 84 86 On Entrance 50 | . 6 7 13 16 48 95 85 82 81 71 96 58 Avg Prop Armor Cover (%) 2 | . . . . . 2 . . . . . . . Naked Turns . | . . . . . . . . . . . . . Heaviest Build 93 | 14 22 28 31 37 68 63 78 93 89 87 91 83 Greatest Support 155 | 40 40 40 40 55 107 106 107 88 88 122 122 155 Greatest Overweight (x) 4 | 4 . . . . . . . 1 1 . . 1 Average Overweight (x) . | . . . . . . . . . . . . . Largest Inventory Capacity 20 | 8 10 10 10 15 15 15 20 20 20 20 20 20 Average Capacity 14 | 7 8 10 10 13 15 15 15 20 20 20 20 20 Most Carried 20 | 3 8 10 10 15 11 10 20 20 20 20 20 20 Average Carried 13 | 2 6 9 10 11 5 10 14 19 18 19 17 17 Final Capacity 20 | 8 10 10 10 15 15 15 20 20 20 20 20 20 Final Carried 20 | 3 8 10 10 12 10 10 20 20 20 20 15 12 Class Distribution -------------------- 47% | Mutant 20% | Scavenger-Mutant 14% | Assassin 13% | Scavenger-Assassin Dominant Class ---------------- Mutant | -10/Materials Mutant | -10/Subcaves Scavenger-Mutant | -7/Recycling Mutant | -7/Scraptown Assassin | -5/Factory Scavenger-Assassin | -5/Waste Scavenger-Assassin | -5/Factory Assassin | -5/Upper Caves Mutant | -5/Upper Caves Mutant | -5/Zhirov Mutant | -4/Proximity Caves Scavenger-Mutant | -4/Factory Resources | -11 -10 -10 -7 -7 -5 -5 -5 -5 -5 -5 -4 -4 ----------- Run | Yrd Mat Sub Rec Scr Fac Was Fac Upp Upp Zhi Pro Fac Matter Collected 2689 | 217 169 327 110 82 238 . 314 427 148 95 102 460 Remotely . | . . . . . . . . . . . . . Salvage Created 5535 | . 428 358 210 . 822 . 627 1155 442 311 51 1131 Parts 239 | . 30 30 11 . 27 . 34 33 13 1 1 59 Haulers Intercepted 2 | . 2 . . . . . . . . . . . Recyclers Shooed . | . . . . . . . . . . . . . Parts Field Recycled . | . . . . . . . . . . . . . Retrieved Matter . | . . . . . . . . . . . . . Parts Self-Destructed 58 | . . 15 . . . . . 22 17 1 3 . Prevented 8 | . . . . . . . . 8 . . . . Parts Restored . | . . . . . . . . . . . . . Kills | -11 -10 -10 -7 -7 -5 -5 -5 -5 -5 -5 -4 -4 ------- Run | Yrd Mat Sub Rec Scr Fac Was Fac Upp Upp Zhi Pro Fac Combat Hostiles Destroyed 86 | . 10 10 3 . 13 . 9 16 8 . 1 16 Melee 57 | . . . . . 13 . 9 11 7 . 1 16 Guns 21 | . 10 10 1 . . . . . . . . . Cannons 2 | . . . 2 . . . . . . . . . AOE 3 | . . . . . . . . 2 1 . . . Classes Destroyed 14 | . 5 3 . . 2 . 1 1 1 . . 1 Worker 4 | . 4 . . . . . . . . . . . Builder 1 | . . . . . . . 1 . . . . . Tunneler 1 | . . . . . . . . . . . . 1 Hauler 2 | . 2 . . . . . . . . . . . Recycler 1 | . . . . . . . . . . . . 1 Watcher 2 | . 1 . . . . . 1 . . . . . Swarmer 20 | . 6 2 . . 1 . . 3 5 . . 3 Grunt 32 | . 4 . . . 4 . 5 12 2 . . 5 Brawler 1 | . . . . . . . . . 1 . . . Sentry 8 | . . 1 3 . 3 . . 1 . . . . Hunter 7 | . . . . . 3 . . . . . . 4 Programmer 11 | . . . . . 2 . 4 . . . 1 4 Artisan 1 | . . 1 . . . . . . . . . . Subdweller 7 | . . 7 . . . . . . . . . . Decomposer 2 | . . . . . . . . . 2 . . . Packrat 1 | . . . . . . . . 1 . . . . Best Kill Streak 6 | . 6 3 1 . 5 . 2 5 4 . 1 4 Combat Bots Only 5 | . 4 3 1 . 5 . 2 5 4 . 1 4 Max Kills in Single Turn 2 | . 2 1 1 . 1 . 1 2 1 . 1 1 Gunslinging . | . . . . . . . . . . . . . Exploded 1 | . . . . . . . . 1 1 . . . Melee 1 | . . . . . 1 . 1 1 1 . 1 1 Uniques/NPCs Destroyed . | . . . . . . . . . . . . . Combat | -11 -10 -10 -7 -7 -5 -5 -5 -5 -5 -5 -4 -4 -------- Run | Yrd Mat Sub Rec Scr Fac Was Fac Upp Upp Zhi Pro Fac Hostile Shots Fired 1228 | . 39 50 45 . 167 3 87 102 85 . 101 549 Missed 353 | . 13 15 16 . 59 1 20 28 20 . 23 158 Hits 875 | . 26 35 29 . 108 2 67 74 65 . 78 391 Melee 25 | . . . . . . 2 . . 4 . 9 10 Projectile 850 | . 26 35 29 . 108 . 67 74 61 . 69 381 AOE 3 | . . . . . . . 2 . . . . 1 Critical Strikes 44 | . . . . . 6 1 5 2 5 . 6 19 Actively Blocked 1 | . . . . . . . . . . . 1 . Damage Taken 14057 | . 243 658 229 . 2075 84 1285 1421 1106 5 1579 5372 Core 2140 | . 11 118 54 . 288 . 122 139 22 5 229 1152 Absorbed by Shields 1294 | . . . . . . . 140 . 66 . 150 938 Redirected to Shielding 159 | . . . . . . . . . . . 159 . Ignored by Resistances 445 | . . . . . . . 106 1 51 . . 287 Core Remaining (%) 47 | 100 . . . 26 . . . . . . 17 . Volleys Fired 121 | . 32 34 11 . . . 13 11 3 . 15 2 Largest 2 | . 2 2 2 . . . 1 1 1 . 1 1 Hottest 110 | . 70 90 110 . . . 90 39 90 . 90 90 Shots Fired 184 | . 63 60 16 . . . 15 11 3 . 15 1 Gun 127 | . 63 59 5 . . . . . . . . . Cannon 39 | . . 1 11 . . . 15 . 2 . 9 1 Launcher 18 | . . . . . . . . 11 1 . 6 . Special . | . . . . . . . . . . . . . Kinetic 79 | . 32 42 5 . . . . . . . . . Thermal 87 | . 31 18 11 . . . 15 . 2 . 9 1 Explosive . | . . . . . . . . . . . . . Electromagnetic 18 | . . . . . . . . 11 1 . 6 . Robot Hit Streak 19 | . 11 13 19 . . . . 3 . . . 1 Robot Miss Streak 3 | . 2 3 . . . . . 1 . . 3 . Penetration Max . | . . . . . . . . . . . . . Secondary Targets 3 | . 1 2 . . . . . . . . . . Max Gunslinging Chain 1 | . 1 1 . . . . . . . . . . Shots Hit Robots 330 | . 43 38 11 . 39 . 38 39 29 10 14 69 Core Hits 152 | . 23 19 6 . 19 . 14 25 14 2 3 27 Critical Kills 1 | . . 1 . . . . . . . . . . Critical Parts Destroyed . | . . . . . . . . . . . . . Critical Strikes 10 | . 1 2 . . . . 1 . 2 . . 4 Burn 1 | . 1 . . . . . . . . . . . Destroy 2 | . . 2 . . . . . . . . . . Sever 1 | . . . . . . . 1 . . . . . Melee Attacks 341 | . . . . . 70 . 68 45 33 11 22 92 Impact . | . . . . . . . . . . . . . Slashing 327 | . . . . . 70 . 68 31 33 11 22 92 Piercing 14 | . . . . . . . . 14 . . . . Sneak Attacks 10 | . . . . . 1 . 3 2 2 . . 2 Combat Hostiles 4 | . . . . . 1 . 2 1 . . . . Follow-up Attacks 18 | . . . . . . . 3 7 1 . 4 3 Damage Inflicted 12495 | . 589 693 293 . 1627 . 1615 2158 1356 800 611 2753 Guns 1346 | . 589 687 70 . . . . . . . . . Cannons 257 | . . . 221 . . . . . . . . 36 Explosions 833 | . . . . . . . . 704 57 . 72 . Melee 10051 | . . . . . 1627 . 1615 1454 1299 800 539 2717 Ramming 8 | . . 6 2 . . . . . . . . . Kinetic 837 | . 259 508 70 . . . . . . . . . Thermal 844 | . 330 179 221 . . . . 78 . . . 36 Explosive . | . . . . . . . . . . . . . Electromagnetic 755 | . . . . . . . . 626 57 . 72 . Impact . | . . . . . . . . . . . . . Slashing 9610 | . . . . . 1627 . 1615 1013 1299 800 539 2717 Piercing 441 | . . . . . . . . 441 . . . . Highest Corruption 28 | . . . . . 2 8 8 1 4 4 19 28 Average Corruption 6 | . . . . . 1 6 7 1 3 4 9 7 Corruption Purged 13 | . . . . . . . 12 1 . . . . Corruption Blocked . | . . . . . . . . . . . . . Effects 120 | . . . . . 8 3 50 . 20 6 17 16 Message Errors 34 | . . . . . . . 13 . 6 2 7 6 Matter Fused 26 | . . . . . 2 1 12 . 5 1 3 2 Heat Flow Errors 15 | . . . . . 1 . 6 . 4 . 3 1 Energy Discharges 19 | . . . . . 1 . 9 . 2 2 2 3 Parts Rejected 2 | . . . . . . 2 . . . . . . Parts Fused 1 | . . . . . . . 1 . . . . . Data Loss (minor) 13 | . . . . . 1 . 5 . 1 1 2 3 Data Loss (major) 4 | . . . . . 2 . 2 . . . . . Misfires 2 | . . . . . . . 2 . . . . . Alerts 3 | . . . . . 1 . . . 2 . . . Weapon Failures 1 | . . . . . . . . . . . . 1 Overload Shots . | . . . . . . . . . . . . . Overflow Damage 895 | . . . . . 50 . 118 156 303 223 28 17 Projectiles . | . . . . . . . . . . . . . Explosions . | . . . . . . . . . . . . . Melee 895 | . . . . . 50 . 118 156 303 223 28 17 Knockbacks . | . . . . . . . . . . . . . Impact . | . . . . . . . . . . . . . Kinetic . | . . . . . . . . . . . . . Secondary . | . . . . . . . . . . . . . Self-Inflicted Damage 62 | . . . . . . . . . . . 62 . Shots 3 | . . . . . . . . . . . 3 . Rammed 3 | . . 2 1 . . . . . . . . . Targets Rammed 3 | . . 2 1 . . . . . . . . . Kicked . | . . . . . . . . . . . . . Crushed . | . . . . . . . . . . . . . Highest Temperature 300 | . 174 . 224 . 213 . 255 21 242 . 300 190 Average Temperature 70 | . 46 . 81 . 74 . 62 9 76 . 101 67 Received Heat Transfer 2356 | . 72 72 72 . 369 . 220 480 387 . 92 592 Siege Activations . | . . . . . . . . . . . . . Martial Activations . | . . . . . . . . . . . . . Shielding Activations . | . . . . . . . . . . . . . Robots Disrupted 2 | . . . . . . . 1 . 1 . . . Combat Hostiles 2 | . . . . . . . 1 . 1 . . . Robots Corrupted 3 | . . . . . . . . 3 . . . . Combat Hostiles 3 | . . . . . . . . 3 . . . . Parts Fried 4 | . . . . . . . . 4 . . . . Impact Corruptions . | . . . . . . . . . . . . . Robots Melted . | . . . . . . . . . . . . . Combat Hostiles . | . . . . . . . . . . . . . Parts Melted 6 | . 3 . 1 . 1 . . . 1 . . . Heat Transferred 1877 | . 1036 408 296 . . . . 100 . . . 37 Parts Sabotaged . | . . . . . . . . . . . . . Parts Stolen . | . . . . . . . . . . . . . Parts Stripped . | . . . . . . . . . . . . . Power Chain Reactions 1 | . . . . . . . . 1 . . . . Alert | -11 -10 -10 -7 -7 -5 -5 -5 -5 -5 -5 -4 -4 ------- Run | Yrd Mat Sub Rec Scr Fac Was Fac Upp Upp Zhi Pro Fac Maximum Alert Level 3 | . . . . . . . . . . . . 3 Low Security (%) 81 | 100 100 . 100 . 100 100 100 . . . . . Level 1 2 | . . . . . . . . . . . . 11 Level 2 14 | . . . . . . . . . . . . 74 Level 3 2 | . . . . . . . . . . . . 12 Level 4 . | . . . . . . . . . . . . . Level 5 . | . . . . . . . . . . . . . High Security . | . . . . . . . . . . . . . Max Security . | . . . . . . . . . . . . . Peak Influence 750 | . 184 . 84 . 139 40 104 . . . . 750 Initial 750 | . . . 7 . . 40 . . . . . 750 Average 130 | . 69 . 23 . 32 24 26 . . . . 540 Influence Increases 3667 | . 384 85 319 . 377 . 376 540 230 5 30 1321 Destroy 0b10 Robot/C 1580 | . 200 60 60 . 260 . 180 320 160 . 20 320 Destroy 0b10 Robot/NC 75 | . 35 . . . . . 10 10 5 5 . 10 Destroy Leader 288 | . 66 10 . . 70 . 32 30 20 . 10 50 Successful Hack 61 | . 6 . 44 . 4 . 2 . . . . 5 Select Force Hacks 270 | . 60 . 210 . . . . . . . . . Disable Machine 30 | . . . . . . . 15 . . . . 15 Destroy Structure 103 | . 2 . 5 . 28 . 62 . . . . 6 Advance Influence 750 | . . . . . . . . . . . . 750 Lose Combat Pursuer 510 | . 15 15 . . 15 . 75 180 45 . . 165 Influence Decreases 3502 | . 323 131 334 . 262 115 350 394 401 6 30 1156 Entered New Map 158 | . . 30 8 . . 75 . 10 34 1 . . Time Decay 2468 | . 323 101 326 . 206 40 330 354 327 5 10 446 Search Patrol Dispatched 300 | . . . . . . . . . . . . 300 Lost Part 576 | . . . . . 56 . 20 30 40 . 20 410 Squads Dispatched 18 | . 4 . . . 6 . 3 . . . . 5 Investigation 10 | . 3 . . . 5 . . . . . . 2 Extermination 7 | . . . . . 1 . 3 . . . . 3 Reinforcement 1 | . 1 . . . . . . . . . . . Assault . | . . . . . . . . . . . . . Garrison . | . . . . . . . . . . . . . Intercept . | . . . . . . . . . . . . . Searches Triggered 3 | . . . . . . . . . . . . 3 Construction Impeded . | . . . . . . . . . . . . . Haulers Reinforced . | . . . . . . . . . . . . . Active Scanning Responses . | . . . . . . . . . . . . . Cargo Convoy Interrupts . | . . . . . . . . . . . . . Stealth | -11 -10 -10 -7 -7 -5 -5 -5 -5 -5 -5 -4 -4 --------- Run | Yrd Mat Sub Rec Scr Fac Was Fac Upp Upp Zhi Pro Fac Distress Signals 7 | . 1 . . . 2 . 1 . . . 3 . Communications Jammed . | . . . . . . . . . . . . . Distress Signals . | . . . . . . . . . . . . . Times Spotted 158 | . 18 16 2 . 16 6 16 25 10 . 13 36 Peak Tracking Total 8 | . 6 6 1 . 4 6 5 5 3 . 8 7 Tactical Retreats 17 | . 1 1 . . 1 . 4 5 1 . . 4 Traps | -11 -10 -10 -7 -7 -5 -5 -5 -5 -5 -5 -4 -4 ------- Run | Yrd Mat Sub Rec Scr Fac Was Fac Upp Upp Zhi Pro Fac Traps Triggered 6 | . 1 2 . . 1 . 2 . . . . . Indirectly . | . . . . . . . . . . . . . Trap Hack Attempts . | . . . . . . . . . . . . . Triggered . | . . . . . . . . . . . . . Disarmed . | . . . . . . . . . . . . . Reprogrammed . | . . . . . . . . . . . . . Reused . | . . . . . . . . . . . . . Traps Extracted . | . . . . . . . . . . . . . Installed . | . . . . . . . . . . . . . Triggered . | . . . . . . . . . . . . . Machines | -11 -10 -10 -7 -7 -5 -5 -5 -5 -5 -5 -4 -4 ---------- Run | Yrd Mat Sub Rec Scr Fac Was Fac Upp Upp Zhi Pro Fac Machines Disabled 3 | . . 1 . . . . 1 . . . . 1 Max in Single Turn 1 | . . 1 . . . . 1 . . . . 1 Garrison Access 1 | . . . . . . . 1 . . . . . Machines Repaired . | . . . . . . . . . . . . . Machines Dismantled . | . . . . . . . . . . . . . Machines Sabotaged . | . . . . . . . . . . . . . Overloaded Fab Kills . | . . . . . . . . . . . . . Hacking | -11 -10 -10 -7 -7 -5 -5 -5 -5 -5 -5 -4 -4 --------- Run | Yrd Mat Sub Rec Scr Fac Was Fac Upp Upp Zhi Pro Fac Machines Accessed 48 | . 6 2 13 2 12 . 2 1 . 4 . 6 Terminals 21 | . 4 . 6 . 7 . . 1 . . . 3 Fabricators 1 | . . . . . . . . . . . . 1 Repair Stations . | . . . . . . . . . . . . . Recycling Units 15 | . 2 . 7 . 5 . . . . . . 1 Scanalyzers 2 | . . . . . . . 1 . . . . 1 Garrison Access 1 | . . . . . . . 1 . . . . . Total Hacks 93 | . 10 4 22 5 17 . 5 1 . 17 . 12 Successful 57 | . 5 4 11 5 8 . 4 1 . 17 . 2 Failed 35 | . 4 . 11 . 9 . 1 . . . . 10 Catastrophic 9 | . 1 . 3 . 3 . . . . . . 2 Database Lockouts 1 | . 1 . . . . . . . . . . . Manual 49 | . 12 . 17 . 11 . . . . . . 9 Terminals 40 | . 8 . 12 . 11 . . 1 . . . 8 Fabricators 2 | . . . . . . . . . . . . 2 Repair Stations . | . . . . . . . . . . . . . Recycling Units 19 | . 2 . 10 . 6 . . . . . . 1 Scanalyzers 5 | . . . . . . . 4 . . . . 1 Garrison Access 1 | . . . . . . . 1 . . . . . Terminal Hacks 32 | . 2 4 1 5 2 . . 1 . 17 . . Record 13 | . . 3 . 4 . . . 1 . 5 . . Part Schematic 5 | . . . 1 . . . . . . 4 . . Robot Analysis 5 | . 1 . . . . . . . . 4 . . Prototype ID Bank 4 | . . . . . . . . . . 4 . . Open Door 1 | . . . . 1 . . . . . . . . Recycling Unit Index 1 | . 1 . . . . . . . . . . . Zone Layout 2 | . . . . . 2 . . . . . . . Proto ID Catalog 1 | . . 1 . . . . . . . . . . Fabricator Hacks . | . . . . . . . . . . . . . Repair Station Hacks . | . . . . . . . . . . . . . Recycling Unit Hacks . | . . . . . . . . . . . . . Scanalyzer 3 | . . . . . . . 3 . . . . . Retrieve Study 3 | . . . . . . . 3 . . . . . Garrison Access Hacks 1 | . . . . . . . 1 . . . . . Seal Access 1 | . . . . . . . 1 . . . . . Unauthorized Hacks 21 | . 3 . 10 . 6 . . . . . . 2 Terminals 6 | . 1 . 3 . 1 . . . . . . 1 Botnet 6 | . 1 . 3 . 1 . . . . . . 1 Fabricators . | . . . . . . . . . . . . . Repair Stations . | . . . . . . . . . . . . . Recycling Units 15 | . 2 . 7 . 5 . . . . . . 1 Tunnel 9 | . 2 . 7 . . . . . . . . . Fedlink 6 | . . . . . 5 . . . . . . 1 Scanalyzers . | . . . . . . . . . . . . . Garrison Access . | . . . . . . . . . . . . . Data Cores Recovered . | . . . . . . . . . . . . . Used . | . . . . . . . . . . . . . Hacking Detections 18 | . 4 . 4 . 4 . 1 . . . . 5 Full Trace Events 3 | . . . 2 . . . . . . . . 1 Feedback Events . | . . . . . . . . . . . . . Feedback Blocked . | . . . . . . . . . . . . . Robot Schematics Acquired . | . . . . . . . . . . . . . Robots Built . | . . . . . . . . . . . . . Authchips . | . . . . . . . . . . . . . Time . | . . . . . . . . . . . . . Total Robot Build Rating . | . . . . . . . . . . . . . Part Schematics Acquired 5 | . . . 1 . . . . . . 4 . . Parts Built . | . . . . . . . . . . . . . Authchips . | . . . . . . . . . . . . . Time . | . . . . . . . . . . . . . Total Part Build Rating . | . . . . . . . . . . . . . Part Studies Acquired 3 | . . . . . . . 3 . . . . . Parts Repaired . | . . . . . . . . . . . . . Time . | . . . . . . . . . . . . . Parts Recycled . | . . . . . . . . . . . . . Recycled Matter . | . . . . . . . . . . . . . Retrieved Matter . | . . . . . . . . . . . . . Retrieved Components . | . . . . . . . . . . . . . Parts Scanalyzed . | . . . . . . . . . . . . . Part Schematics Acquired . | . . . . . . . . . . . . . Parts Damaged . | . . . . . . . . . . . . . Bothacking | -11 -10 -10 -7 -7 -5 -5 -5 -5 -5 -5 -4 -4 ------------ Run | Yrd Mat Sub Rec Scr Fac Was Fac Upp Upp Zhi Pro Fac Used RIF Installer . | . . . . . . . . . . . . . Robots Hacked . | . . . . . . . . . . . . . Non-combat . | . . . . . . . . . . . . . Combat . | . . . . . . . . . . . . . Robot Hacks Applied . | . . . . . . . . . . . . . Relay Couplers Released . | . . . . . . . . . . . . . Fabnet Peak Effective % . | . . . . . . . . . . . . . Robots Rewired . | . . . . . . . . . . . . . Allies Hacked . | . . . . . . . . . . . . . Hacks Repelled . | . . . . . . . . . . . . . Allies | -11 -10 -10 -7 -7 -5 -5 -5 -5 -5 -5 -4 -4 -------- Run | Yrd Mat Sub Rec Scr Fac Was Fac Upp Upp Zhi Pro Fac Total Allies . | . . . . . . . . . . . . . Largest Group . | . . . . . . . . . . . . . Highest-Rated Group . | . . . . . . . . . . . . . Highest-Rated Ally . | . . . . . . . . . . . . . Initial UFD Resources 60 | . . . . . 37 57 57 57 57 57 60 60 Total Orders . | . . . . . . . . . . . . . Ally Attacks . | . . . . . . . . . . . . . Total Damage . | . . . . . . . . . . . . . Kills . | . . . . . . . . . . . . . Allies Corrupted . | . . . . . . . . . . . . . Allies Melted . | . . . . . . . . . . . . . Intel | -11 -10 -10 -7 -7 -5 -5 -5 -5 -5 -5 -4 -4 ------- Run | Yrd Mat Sub Rec Scr Fac Was Fac Upp Upp Zhi Pro Fac Active Infowar (turns) 8083 | . 51 739 576 448 859 81 1584 1416 809 270 521 729 Optics 2654 | . . . . 448 859 81 1266 . . . . . Sensors 5855 | . . . . . 777 81 1308 1396 791 270 521 711 Structural 3636 | . 51 739 576 . . . 908 1344 18 . . . Traps 299 | . . . . . . . . . . . . 299 Robot Analysis Total 5 | . 1 . . . . . . . . 4 . . Derelict Logs Recovered 10 | . . 1 . 5 . . . 2 1 . 1 . Drone Launches . | . . . . . . . . . . . . . Drone Recoveries . | . . . . . . . . . . . . . Exploration | -11 -10 -10 -7 -7 -5 -5 -5 -5 -5 -5 -4 -4 ------------- Run | Yrd Mat Sub Rec Scr Fac Was Fac Upp Upp Zhi Pro Fac Turns Passed 12624 | 111 849 1421 1216 2290 859 81 1584 1416 858 271 565 1103 Spaces Moved 7708 | 55 441 776 714 1479 488 67 1048 856 592 196 361 635 Core 13 | 13 . . . . . . . . . . . . Treads 3112 | 42 441 776 714 1139 . . . . . . . . Legs 4583 | . . . . 340 488 67 1048 856 592 196 361 635 Wheels . | . . . . . . . . . . . . . Hover . | . . . . . . . . . . . . . Flight . | . . . . . . . . . . . . . Fastest Speed 50 | 50 160 160 160 130 116 122 111 114 114 114 120 105 Average Speed 138 | 152 160 160 160 153 122 122 114 139 126 117 120 113 Slowest Speed 250 | 250 160 160 160 160 125 123 123 186 184 120 120 182 Overloaded Moves . | . . . . . . . . . . . . . Propulsion Burnouts . | . . . . . . . . . . . . . Robots Hopped . | . . . . . . . . . . . . . Potential Cave-ins . | . . . . . . . . . . . . . Cave-ins Triggered . | . . . . . . . . . . . . . Teleports 1 | . . . . . . . . . . . 1 . Exploration Rate (%) 54 | 3 76 50 99 86 16 80 20 83 69 60 60 11 Regions Visited 12 Branch Regions 7 Pre-discovered Areas 16 | . 2 2 7 1 1 . . . . 3 . . Known Exits Taken 6 | . . . . 1 . . 1 1 1 1 1 . Unknown Exits Taken 4 | 1 1 1 1 . . . . . . . . . Scrap Searched 17 | . . 5 . 6 . . . 4 1 . 1 . Spaces Dug 48 | . . 1 2 . 14 . 24 . 1 . 3 3 Terrain Destroyed 76 | . . 1 4 . 14 . 33 10 2 . 9 3 Melee 36 | . . . . . 14 . 19 . . . . 3 Projectile 30 | . . 1 4 . . . 14 . 2 . 9 . AOE 10 | . . . . . . . . 10 . . . . Terrain Rammed . | . . . . . . . . . . . . . Walls Destroyed . | . . . . . . . . . . . . . Machines Disabled . | . . . . . . . . . . . . . Actions | -11 -10 -10 -7 -7 -5 -5 -5 -5 -5 -5 -4 -4 --------- Run | Yrd Mat Sub Rec Scr Fac Was Fac Upp Upp Zhi Pro Fac Total 9007 | 79 523 890 765 1507 639 66 1323 1010 655 224 450 876 Wait 463 | 16 39 31 29 . 42 . 116 60 8 . 46 76 Move 7698 | 54 440 776 713 1478 488 66 1047 855 591 195 360 635 Hop . | . . . . . . . . . . . . . Pick Up 71 | 3 6 9 . 10 8 . 16 8 1 3 . 7 Fast Attach 69 | 6 1 2 . 4 10 . 14 4 3 5 . 20 Attach 67 | . 1 3 . 3 11 . 8 6 7 1 6 21 Detach 24 | . 1 1 . . 1 . 4 4 6 . 1 6 Swap 90 | . 1 21 7 1 6 . 18 11 1 3 4 17 Drop 74 | . 2 12 1 11 . . 22 13 3 7 . 3 Fire 121 | . 32 34 11 . . . 13 11 3 . 15 2 Melee 321 | . . . . . 70 . 65 37 32 10 18 89 Ram . | . . . . . . . . . . . . . Kick . | . . . . . . . . . . . . . Crush 2 | . . 1 1 . . . . . . . . . Escape Stasis . | . . . . . . . . . . . . . Rewire 1 | . . . . . . . . 1 . . . . Trap . | . . . . . . . . . . . . . Miscellaneous 6 | . . . 3 . 3 . . . . . . . Route ------- -11/Scrapyard -10/Materials (discovered 4 exits: [*Mat x2] / [*Min] / *Sub) -10/Subcaves -7/Recycling (discovered 2 exits: *Fac / *Scr) -7/Scraptown (discovered 2 exits: *Fac x2) -5/Factory (discovered 2 exits: Upp x2) -5/Waste -5/Factory (discovered 3 exits: *Fac x2 / *Upp) -5/Upper Caves -5/Upper Caves (discovered 2 exits: *Fac / *Zhi) -5/Zhirov -4/Proximity Caves -4/Factory (discovered 1 exit: *Res) History --------- Turn | Location | Event 8 | -11/Scrapyard | Discovered new exit (range 16) 112 | -11/Scrapyard | Entered Materials 203 | -10/Materials | Discovered new exit (range 11) 206 | -10/Materials | Central database locked down 304 | -10/Materials | Build established: Mutant 383 | -10/Materials | Discovered new exit (range 8) 708 | -10/Materials | Discovered new exit (range 16) 947 | -10/Materials | Discovered new exit (range 10) 961 | -10/Materials | Entered Subcaves 1263 | -10/Subcaves | Ambushed by angry Subdweller bent on revenge 1639 | -10/Subcaves | Visited 4L-MR0's lab 1659 | -10/Subcaves | Found Cargo Legs 1942 | -10/Subcaves | Visited Clippyterm 1947 | -10/Subcaves | Learned location of Section 7 (-2) 2349 | -10/Subcaves | Discovered new exit (range 13) 2382 | -10/Subcaves | Core integrity fell below 50% 2382 | -10/Subcaves | Entered Recycling 2538 | -7/Recycling | Scanned before Scraplab entrance 2625 | -7/Recycling | Build established: Scavenger-Mutant 3058 | -7/Recycling | Discovered new exit (range 15) 3582 | -7/Recycling | Entered Scraplab 3595 | -7/Recycling | Discovered new exit (range 2) 3598 | -7/Recycling | Entered Scraptown 3710 | -7/Scraptown | Heard Great Nut preacher, LISTEN AND RECITE! 3752 | -7/Scraptown | Visited Junk Repository 3802 | -7/Scraptown | Visited UFD Registry 3802 | -7/Scraptown | Registered with UFD as "Armorskull" 3866 | -7/Scraptown | Visited Symbiants 3915 | -7/Scraptown | Scanned Subdweller tech in exchange for log data 3918 | -7/Scraptown | Learned 8 Factory zone layouts 3920 | -7/Scraptown | Learned Factory stockpile data 3922 | -7/Scraptown | Learned location of Warlord (-4) 3923 | -7/Scraptown | Learned 12 Research zone layouts 3925 | -7/Scraptown | Learned location of 1 exit from Factory 3944 | -7/Scraptown | Discovered new exit (range 13) 3981 | -7/Scraptown | Guru changed UFD alias to "Smoothsink" 4139 | -7/Scraptown | Visited Sword Containment 4156 | -7/Scraptown | Found Prototype Slashing Weapon 4156 | -7/Scraptown | Identified Companion Sword 4196 | -7/Scraptown | Visited Scrapoid Pod Storage 4219 | -7/Scraptown | Visited Scrapoid Research Area 4348 | -7/Scraptown | Visited Botcube Research 4375 | -7/Scraptown | Visited Research Penetration Think Tank 4410 | -7/Scraptown | Visited Abandonware Association 4433 | -7/Scraptown | Learned abandonware demo "HACKBUD.EXE" 4452 | -7/Scraptown | Build established: Mutant 4460 | -7/Scraptown | Visited Modified Component R&D 4537 | -7/Scraptown | Visited Science Testing Area 4566 | -7/Scraptown | Visited Supply Room 5242 | -7/Scraptown | Visited SPCMW 5264 | -7/Scraptown | Visited Shadow of the Wyrm 5278 | -7/Scraptown | Visited Awakened 5440 | -7/Scraptown | Attached Cargo Legs, gained temporary slots: Utility x2 5817 | -7/Scraptown | Met Optimus 5817 | -7/Scraptown | Accepted into 0bPrime 5882 | -7/Scraptown | Discovered new exit (range 5) 5886 | -7/Scraptown | Identified exit to Factory 5888 | -7/Scraptown | Entered Factory 5888 | -5/Factory | Evolved 10 slots: Power x1, Propulsion x3, Utility x6 5889 | -5/Factory | Identified exit to Upper Caves 6070 | -5/Factory | Loaded intel: 8 recycling unit locations 6113 | -5/Factory | Learned location of Protoforge (-2) 6361 | -5/Factory | Build established: Assassin 6582 | -5/Factory | Lost 7 parts (1p1n5u) 6747 | -5/Factory | Sucked down chute 6747 | -5/Factory | Entered Waste 6755 | -5/Waste | Spotted C-40 Crusher 6757 | -5/Waste | Spotted C-40 Crusher 6757 | -5/Waste | Spotted C-40 Crusher 6762 | -5/Waste | EMP discharged 6800 | -5/Waste | Discovered new exit (range 22) 6800 | -5/Waste | Spotted C-40 Crusher 6800 | -5/Waste | Spotted C-40 Crusher 6810 | -5/Waste | Spotted C-40 Crusher 6827 | -5/Waste | Identified exit to Factory 6828 | -5/Waste | Entered Factory 6934 | -5/Factory | Build established: Scavenger-Assassin 7042 | -5/Factory | Discovered new exit (range 19) 7610 | -5/Factory | Discovered exit to Upper Caves (range 5) 7903 | -5/Factory | Discovered new exit (range 12) 7917 | -5/Factory | Identified exit to Factory 8008 | -5/Factory | Build established: Assassin 8412 | -5/Factory | Entered Upper Caves 8633 | -5/Upper Caves | Learned 4 Factory zone layouts 8655 | -5/Upper Caves | Learned Factory emergency access door positions 8803 | -5/Upper Caves | Attracted the attention of an 0b10 checkpoint 8819 | -5/Upper Caves | Core integrity fell below 50% 9123 | -5/Upper Caves | Build established: Scavenger-Assassin 9361 | -5/Upper Caves | Spotted B-75 Beast 9637 | -5/Upper Caves | Discovered new exit (range 16) 9826 | -5/Upper Caves | Identified exit to Upper Caves 9828 | -5/Upper Caves | Entered another Upper Caves area 9903 | -5/Upper Caves | Lost 4 parts (1p3u) 10049 | -5/Upper Caves | Build established: Mutant 10136 | -5/Upper Caves | Discovered exit to Factory (range 12) 10462 | -5/Upper Caves | Encountered a Warlord checkpoint 10464 | -5/Upper Caves | Discovered new exit (range 13) 10685 | -5/Upper Caves | Identified exit to Zhirov 10686 | -5/Upper Caves | Entered Zhirov 10686 | -5/Zhirov | Discovered new exit (range 3) 10707 | -5/Zhirov | Met Zhirov 10729 | -5/Zhirov | Learned location of Testing (-2) 10739 | -5/Zhirov | Zhirov requested help retrieving the SGEMP Prototype 10756 | -5/Zhirov | Found Alien Artifact 10756 | -5/Zhirov | Identified Integrated Reactor 10756 | -5/Zhirov | Installed Integrated Reactor, increased core energy generation (+10) 10772 | -5/Zhirov | Found Alien Artifact 10954 | -5/Zhirov | Identified exit to Proximity Caves 10957 | -5/Zhirov | Entered Proximity Caves 10959 | -4/Proximity Caves | Spotter reported a threat 10960 | -4/Proximity Caves | Spotter reported a threat 11186 | -4/Proximity Caves | Spotter reported a threat 11200 | -4/Proximity Caves | Learned Research stockpile data 11279 | -4/Proximity Caves | Spotter reported a threat 11317 | -4/Proximity Caves | System corruption reached 10% 11334 | -4/Proximity Caves | Core integrity fell below 20% 11335 | -4/Proximity Caves | Identified Transdimensional Reconstructor 11335 | -4/Proximity Caves | Warped through subspace 11363 | -4/Proximity Caves | Lost 8 parts (3p2n3u) 11464 | -4/Proximity Caves | Spotter reported a threat 11518 | -4/Proximity Caves | Discovered exit to Factory (range 2) 11522 | -4/Proximity Caves | Entered Factory 11522 | -4/Factory | Evolved 2 slots: Propulsion x1, Utility x1 11523 | -4/Factory | Identified exit to Research 11772 | -4/Factory | Search patrols dispatched 12022 | -4/Factory | Search patrols dispatched 12154 | -4/Factory | Loaded intel: 8 recycling unit locations 12270 | -4/Factory | Lost 7 parts (2p2n3u) 12272 | -4/Factory | Search patrols dispatched 12354 | -4/Factory | Core integrity fell below 50% 12380 | -4/Factory | Lost 14 parts (2p9n3u) 12596 | -4/Factory | System corruption reached 10% 12617 | -4/Factory | Core integrity fell below 20% 12625 | -4/Factory | Destroyed by P-70 Sage with Tesla Rifle Last Messages --------------- corruption cleaned. 12613_ Carbon-fiber Leg+ destroyed. 12615_ Companion Sword surprise attacks P-70 Sage. 12615_ Destroyed Imp. Heat Sink. 12615_ P-70 Sage resets G-67 Veteran, system corruption cleaned. 12617_ Carbon-fiber Leg+ destroyed. 12617_ Myomer Leg destroyed. 12617_ System corrupted by crushing effect (+2). 12619_ VSS Leg+ destroyed. 12620_ Carbon-fiber Leg+ destroyed. 12620_ Companion Sword destroyed. Companion Sword: "My time is up..." 12621_ System corrupted: Proton Missile Launcher failed to launch. 12623_ Critical hit (Burn: +50). 12623_ Proton Missile Launcher destroyed. 12623_ System corrupted by crushing effect (+3). 12624_ B-60 Warrior destroyed. Map ----- +----------------------------------------------------+ | ???????????????????????????????????????? | | ????????????? ???????????????????????? | | ????????????? ???????????????????????? | | ????????????? ???????????????????????? | | ????????????? ????? ????????????????? | | ????????????? ""??" #??????????????? | | ????????????? """"" #??????????????? | | ????????????? """ #??????????????? | | ????????????# #??????????????? | | ????????????# #??????????????? | | ????????????# !! ???????????????? | | ????????????# ! ?????????????????? | | ????????????# ??????????????????? | | ????????????# ????????????????????? | | ???????????## #?????????????????????? | | ???????????## #?????????????????????? | | ????????????# #?????????????????????? | | ????????????# #?????????????????????? | | ????????????# #?????????????????????? | | ????????????# #?????????????????????? | | ????????????# *#?????????????????????? | | ????????????# =%#?????????????????????? | | ????????????# =#?????????????????????? | | ????????????# #?????????????????????? | | ????????????# / #?????????????????????? | | ????????????# %@ #???#?????????????????? | | ????????????#gpgp### ########??????????? | | ????????????## g ?????????? | | ???########### ?????????? | | ???# ! # ?????????? | | ???# # #########+##??????????? | | ???# # #?????????????????????? | | ???# + #?????????????????????? | | ???# "" "" # #?????????????????????? | | ???? ""S"" # #?????????????????????? | | ???# """" # #?????????????????????? | | ???# # #?????????????????????? | | ???#######+### #?????????????????????? | | ?????????# #?# u#?????????????????????? | | ??######## #?# ##????????????????????? | | ??# # #? #######??????????????? | | ??# """ # ## ?????????????? | | ??# """ + T ?????????????? | | ??# """ # ## ?????????????? | | ??# # #? ### ###??????????????? | | ??# # #??#####????????????????????? | | ??###+#### #???????????????????????????? | | ????# #??# #???????????????????????????? | | ????# #??# #???????????????????????????? | | ????# #??# #???????????????????????????? | +----------------------------------------------------+ Best States ------------- Heat Dissipation 109 Energy Generation 47 Energy Capacity 385 Matter Stores 300 Matter Capacity 300 Sight Range 22 Robot Scan Range 16 Terrain Scan Density 10 Power Amplification 30 Armor Coverage 925 Resistance: KI 25 Resistance: EM 15 Utility Shielding 90 Phase Shifting 10 Evasion (%) 65 Melee Accuracy 16 Core Analysis 6 Recoil Reduction 2 Offensive Hacking 14 Defensive Hacking 14 Item Schematics ----------------- Adv. Plasma Cannon | -7/Recycling | Hacked Assault Drone Bay | -5/Zhirov | Free Exp. Heat Sink | -5/Zhirov | Free Exp. Optical Array | -5/Zhirov | Free Imp. Arc Thrower | -5/Zhirov | Free Robot Schematics ------------------ None Fabricated ------------ Nothing Repaired ---------- Nothing Studied --------- VSS Leg | -5/Factory | Hacked Carbon-fiber Leg | -5/Factory | Hacked Flexi-carbon Leg | -5/Factory | Hacked Alien Tech Used ----------------- Integrated Reactor Transdimensional Reconstructor Achievements -------------- None Challenges ------------ None Game ------ Seed SalvageGaussRifle Manual? 0 Play Time 01:34:02 Cumulative 340.7 hours Start 2026.09.06 @ 03:08:58 End 2026.09.06 @ 04:44:31 Sessions 1 Manual Loads 0 Difficulty Rogue Special Mode None Game No. 319 Rogue 265 Adventurer 54 Explorer 0 Win Type - Total 16 Types 11/1/1/1/0/0/0/1/0/1 Lore% 80 Gallery% 69 Achievement% 65 Wizard Run 0 Options --------- Layout 1 ASCII 0 Keyboard 0 Movement Mouse Keybinds 1 Fullscreen 2 Font 32/Tamsyn Map View 50x35 Zoom Use 0% Tactical HUD 1 Map Filters NONE Filters NONE Steam 1 RUN: 16420f2a-3bc1-459e-812d-7a25a458ffb1